fUSD/lending_fUSD_20260227
["ID","MTS","AMOUNT","RATE_DAILY","PERIOD"]
[406824896,1772209848231,-583.33,0.00038577,120]
[406824897,1772209848240,-500.0,0.00038577,120]
[406824898,1772209848250,-149952.0,0.00038577,30]
[406824899,1772209848259,-151.0,0.00038578,120]
[406824900,1772209848268,-151.0,0.00038578,120]
[406824901,1772209848278,-151.0,0.00038578,120]
[406824902,1772209848287,-151.0,0.00038578,120]
[406824903,1772209848296,-151.0,0.00038578,120]
[406824904,1772209848305,-151.0,0.00038578,120]
[406824905,1772209848315,-151.0,0.00038578,120]
[406824906,1772209848324,-151.0,0.00038578,120]
[406824907,1772209848333,-277.392976,0.00038578,120]
[406824908,1772209848343,-277.392976,0.00038578,120]
[406824909,1772209848351,-277.392976,0.00038578,120]
[406824910,1772209848361,-277.392976,0.00038578,120]
[406824911,1772209848370,-318.524712,0.00038578,7]
[406824912,1772209848379,-318.524712,0.00038578,7]
[406824913,1772209848389,-318.524712,0.00038578,7]
[406824914,1772209848398,-318.524712,0.00038578,7]
[406824915,1772209848407,-2000.0,0.000388,2]
[406824916,1772209848416,-3496.0,0.00038858,2]
[406824917,1772209848425,-1211.0,0.00039091,2]
[406824918,1772209848434,-921.0,0.00039091,2]
[406824919,1772209848443,-904.95,0.000391,14]
[406824920,1772209848453,-14028.0,0.00039198,5]
[406824921,1772209848462,-967.46295734,0.00039233,2]
[406824922,1772209848472,-500.0,0.0003938,51]
[406824923,1772209848481,-1000.0,0.000395,2]
[406824924,1772209848491,-2195.67203992,0.00039634,2]
[406824925,1772209848499,-895.83,0.000397,120]
[406824926,1772209848509,-620.13,0.000397,120]
[406824927,1772209848519,-1565.09,0.000397,30]
[406824928,1772209848530,-583.33,0.000397,120]
[406824929,1772209848540,-500.0,0.000397,120]
[406824930,1772209848549,-151.0,0.00039701,30]
[406824931,1772209848559,-151.0,0.00039701,120]
[406824932,1772209848568,-151.0,0.00039701,120]
[406824933,1772209848577,-151.0,0.00039701,14]
[406824934,1772209848586,-149952.0,0.00039701,30]
[406824935,1772209848595,-323.0,0.00039726,120]
[406824936,1772209848605,-156.0,0.0004,120]
[406824937,1772209848614,-9726.53849063,0.0004,120]
[406824938,1772209848624,-151.0,0.0004,120]
[406824939,1772209848633,-15000.0,0.0004,120]
[406824940,1772209848643,-273.07431168,0.0004,120]
[406824941,1772209848652,-150.0,0.00040165,2]
[406824942,1772209848661,-15000.0,0.000403,120]
[406824943,1772209848670,-240.00000001,0.00040442,5]
[406824944,1772209848679,-269.0,0.00040479,2]
[406824945,1772209848688,-200.0,0.00040479,2]
[406824946,1772209848698,-2566.84,0.000405,14]
[406824948,1772209848707,-1575.8,0.000405,14]
[406824950,1772209848717,-621.78829552,0.00040539,2]
[406824952,1772209848728,-256.63658865,0.00040539,2]
[406824955,1772209848737,-500.0,0.00040539,2]
[406824957,1772209848746,-500.0,0.00040539,2]
[406824958,1772209848755,-500.0,0.00040539,2]
[406824961,1772209848765,-500.0,0.00040539,2]
[406824963,1772209848774,-500.0,0.00040539,2]
[406824965,1772209848783,-500.0,0.00040539,2]
[406824966,1772209848792,-500.0,0.00040539,2]
[406824968,1772209848802,-250.0,0.00040539,2]
[406824971,1772209848812,-500.0,0.00040539,2]
[406824972,1772209848823,-250.0,0.00040539,2]
[406824975,1772209848834,-578.20924308,0.00040539,2]
[406824977,1772209848843,-500.0,0.00040539,2]
[406824979,1772209848852,-250.0,0.00040539,2]
[406824980,1772209848861,-500.0,0.00040539,2]
[406824981,1772209848870,-250.0,0.00040539,2]
[406824982,1772209848879,-500.0,0.00040539,2]
[406824983,1772209848888,-250.0,0.00040539,2]
[406824984,1772209848897,-500.0,0.00040539,2]
[406824985,1772209848906,-250.0,0.00040539,2]
[406824986,1772209848916,-151.0,0.00040539,2]
[406824987,1772209848926,-500.0,0.00040539,2]
[406824988,1772209848936,-250.0,0.00040539,2]
[406824989,1772209848945,-151.0,0.00040539,2]
[406824990,1772209848953,-500.0,0.00040539,2]
[406824992,1772209848962,-250.0,0.00040539,2]
[406824993,1772209848972,-151.0,0.00040539,2]
[406824994,1772209848981,-250.0,0.00040539,2]
[406824995,1772209848990,-151.0,0.00040539,2]
[406824996,1772209848999,-151.0,0.00040539,2]
[406824997,1772209849008,-250.0,0.00040539,2]
[406824998,1772209849018,-151.0,0.00040539,2]
[406824999,1772209849028,-500.0,0.00040539,2]
[406825000,1772209849038,-250.0,0.00040539,2]
[406825001,1772209849047,-500.0,0.00040539,2]
[406825002,1772209849056,-250.0,0.00040539,2]
[406825003,1772209849065,-151.0,0.00040539,2]
[406825004,1772209849074,-500.0,0.00040539,2]
[406825006,1772209849089,-151.0,0.00040539,2]
[406825007,1772209849099,-250.0,0.00040539,2]
[406825008,1772209849108,-500.0,0.00040539,2]
[406825009,1772209849119,-151.0,0.00040539,2]
[406825010,1772209849129,-250.0,0.00040539,2]
[406825011,1772209849138,-500.0,0.00040539,2]
[406825012,1772209849148,-151.0,0.00040539,2]
[406825013,1772209849158,-500.0,0.00040539,2]
[406825014,1772209849169,-151.0,0.00040539,2]
[406825015,1772209849178,-500.0,0.00040539,2]
[406825016,1772209849188,-151.0,0.00040539,2]
[406825018,1772209849197,-500.0,0.00040539,2]
[406825019,1772209849206,-151.0,0.00040539,2]
[406825021,1772209849215,-174.61919141,0.00040539,2]
[406825023,1772209849225,-500.0,0.00040539,2]
[406825025,1772209849234,-151.0,0.00040539,2]
[406825026,1772209849243,-500.0,0.00040539,2]
[406825027,1772209849252,-500.0,0.00040539,2]
[406825028,1772209849262,-500.0,0.00040539,2]
[406825029,1772209849271,-500.0,0.00040539,2]
[406825030,1772209849280,-500.0,0.00040539,2]
[406825031,1772209849289,-500.0,0.00040539,2]
[406825032,1772209849298,-500.0,0.00040539,2]
[406825033,1772209849307,-500.0,0.00040539,2]
[406825034,1772209849316,-500.0,0.00040539,2]
[406825035,1772209849325,-248.71531821,0.00040539,2]
[406825036,1772209849334,-500.0,0.00040539,2]
[406825037,1772209849343,-324.94565365,0.00040539,2]
[406825038,1772209849353,-644.79446246,0.00040594,2]
[406825039,1772209849362,-895.83,0.00040599,120]
[406825040,1772209849371,-895.83,0.00040599,120]
[406825041,1772209849380,-895.83,0.00040599,120]
[406825042,1772209849390,-895.83,0.00040599,120]
[406825043,1772209849399,-895.91,0.00040599,120]
[406825044,1772209849408,-620.13,0.00040599,120]
[406825045,1772209849417,-620.13,0.00040599,120]
[406825046,1772209849427,-620.13,0.00040599,120]
[406825047,1772209849436,-620.13,0.00040599,120]
[406825048,1772209849445,-620.3381671,0.00040599,120]
[406825049,1772209849454,-583.33,0.00040599,120]
[406825050,1772209849464,-583.33,0.00040599,120]
[406825051,1772209849473,-583.33,0.00040599,120]
[406825052,1772209849482,-583.33,0.00040599,120]
[406825053,1772209849492,-583.41,0.00040599,120]
[406825054,1772209849501,-500.0,0.00040599,120]
[406825055,1772209849510,-553.51280634,0.00040599,120]
[406825056,1772209849520,-15000.0,0.000406,120]
[406825057,1772209849529,-668.65185757,0.00040649,2]
[406825058,1772209849539,-693.3919763,0.00040704,2]
[406825059,1772209849548,-719.04747942,0.00040759,2]
[406825060,1772209849558,-745.65223616,0.00040814,2]
[406825061,1772209849567,-149952.0,0.00040825,30]
[406825062,1772209849576,-773.2413689,0.00040869,2]
[406825063,1772209849585,-15000.0,0.000409,120]
[406825064,1772209849594,-801.85129955,0.00040924,2]
[406825065,1772209849604,-831.51979763,0.00040979,2]
[406825066,1772209849613,-1100.0,0.00041,3]
[406825067,1772209849623,-862.28603014,0.00041034,2]
[406825068,1772209849632,-181.08010149,0.00041087,2]
[406825069,1772209849641,-257.91778498,0.00041087,2]
[406825070,1772209849650,-894.19061326,0.00041089,2]
[406825071,1772209849659,-844.0,0.00041096,120]
[406825072,1772209849669,-172.929218,0.00041096,120]
[406825073,1772209849679,-163.39821,0.00041096,120]
[406825074,1772209849688,-151.0,0.00041096,120]
[406825075,1772209849697,-151.0,0.00041096,120]
[406825076,1772209849707,-151.000123,0.00041096,120]
[406825077,1772209849715,-151.0,0.00041096,120]
[406825078,1772209849725,-151.0,0.00041096,120]
[406825079,1772209849734,-151.0,0.00041096,120]
[406825080,1772209849743,-164.53452,0.00041096,120]
[406825081,1772209849752,-151.0,0.00041096,120]
[406825082,1772209849761,-151.0,0.00041096,120]
[406825083,1772209849770,-151.0,0.00041096,120]
[406825084,1772209849780,-151.0,0.00041096,120]
[406825085,1772209849789,-151.0,0.00041096,120]
[406825086,1772209849799,-151.0,0.00041096,120]
[406825087,1772209849808,-151.0,0.00041096,120]
[406825088,1772209849817,-151.0,0.00041096,120]
[406825089,1772209849826,-187.009171,0.00041096,120]
[406825090,1772209849836,-151.0,0.00041096,120]
[406825091,1772209849846,-187.009171,0.00041096,120]
[406825092,1772209849855,-187.009171,0.00041096,120]
[406825093,1772209849865,-187.009171,0.00041096,120]
[406825094,1772209849874,-151.0,0.00041096,120]
[406825095,1772209849884,-151.0,0.00041096,120]
[406825096,1772209849894,-151.0,0.00041096,120]
[406825097,1772209849903,-151.0,0.00041096,120]
[406825098,1772209849913,-151.0,0.00041096,120]
[406825099,1772209849921,-151.0,0.00041096,120]
[406825100,1772209849930,-151.0,0.00041096,120]
[406825101,1772209849940,-151.0,0.00041096,120]
[406825102,1772209849950,-151.0,0.00041096,120]
[406825103,1772209849959,-151.0,0.00041096,120]
[406825104,1772209849968,-151.0,0.00041096,120]
[406825105,1772209849978,-166.256705,0.00041096,120]
[406825106,1772209849987,-151.0,0.00041096,120]
[406825107,1772209849996,-151.0,0.00041096,120]
[406825108,1772209850006,-197.30178,0.00041096,120]
[406825109,1772209850015,-151.0,0.00041096,120]
[406825110,1772209850025,-151.0,0.00041096,120]
[406825111,1772209850035,-151.0,0.00041096,120]
[406825112,1772209850044,-151.0,0.00041096,120]
[406825113,1772209850054,-151.0,0.00041096,120]
[406825114,1772209850063,-175.797548,0.00041096,120]
[406825115,1772209850072,-151.0,0.00041096,120]
[406825116,1772209850082,-151.0,0.00041096,120]
[406825117,1772209850094,-172.746768,0.00041096,120]
[406825118,1772209850103,-237.417832,0.00041096,120]
[406825119,1772209850113,-151.0,0.00041096,120]
[406825120,1772209850122,-151.0,0.00041096,120]
[406825121,1772209850132,-162.935622,0.00041096,120]
[406825122,1772209850142,-151.0,0.00041096,120]
[406825123,1772209850152,-151.0,0.00041096,120]
[406825124,1772209850165,-151.0,0.00041096,120]
[406825125,1772209850174,-151.0,0.00041096,120]
[406825126,1772209850184,-151.0,0.00041096,120]
[406825127,1772209850193,-151.0,0.00041096,120]
[406825128,1772209850202,-151.0,0.00041096,120]
[406825129,1772209850212,-222.766668,0.00041096,120]
[406825130,1772209850224,-151.0,0.00041096,120]
[406825131,1772209850234,-151.0,0.00041096,120]
[406825132,1772209850244,-151.0,0.00041096,120]
[406825133,1772209850254,-151.0,0.00041096,120]
[406825134,1772209850263,-151.0,0.00041096,120]
[406825135,1772209850272,-151.0,0.00041096,120]
[406825136,1772209850282,-151.0,0.00041096,120]
[406825137,1772209850292,-151.0,0.00041096,120]
[406825138,1772209850435,-151.0,0.00041096,120]
[406825139,1772209850446,-151.0,0.00041096,120]
[406825140,1772209850456,-168.281826,0.00041096,120]
[406825141,1772209850466,-151.0,0.00041096,120]
[406825142,1772209850475,-151.0,0.00041096,120]
[406825143,1772209850486,-151.0,0.00041096,120]
[406825144,1772209850495,-151.0,0.00041096,120]
[406825145,1772209850505,-151.0,0.00041096,120]
[406825146,1772209850515,-151.0,0.00041096,120]
[406825147,1772209850524,-154.016394,0.00041096,120]
[406825148,1772209850536,-151.0,0.00041096,120]
[406825149,1772209850545,-151.0,0.00041096,120]
[406825150,1772209850555,-213.163862,0.00041096,120]
[406825151,1772209850564,-202.265354,0.00041096,120]
[406825152,1772209850575,-235.201545,0.00041096,120]
[406825153,1772209850585,-298.897297,0.00041096,15]
[406825154,1772209850594,-298.897297,0.00041096,15]
[406825155,1772209850604,-298.897297,0.00041096,15]
[406825156,1772209850614,-298.897297,0.00041096,15]
[406825157,1772209850624,-298.897297,0.00041096,15]
[406825158,1772209850633,-273.913285,0.00041096,120]
[406825159,1772209850643,-298.897297,0.00041096,15]
[406825160,1772209850653,-298.897297,0.00041096,15]
[406825161,1772209850663,-298.897297,0.00041096,15]
[406825162,1772209850672,-151.0,0.00041096,120]
[406825163,1772209850686,-151.0,0.00041096,120]
[406825164,1772209850695,-279.592193,0.00041096,120]
[406825165,1772209850705,-151.0,0.00041096,30]
[406825166,1772209850714,-151.0,0.00041096,30]
[406825167,1772209850724,-201.36154,0.00041096,30]
[406825168,1772209850733,-242.974448,0.00041096,31]
[406825169,1772209850743,-171.876515,0.00041096,120]
[406825170,1772209850752,-201.386941,0.00041096,120]
[406825171,1772209850762,-287.710013,0.00041096,120]
[406825172,1772209850771,-151.0,0.00041096,120]
[406825173,1772209850782,-151.0,0.00041096,120]
[406825174,1772209850792,-151.0,0.00041096,120]
[406825175,1772209850801,-151.0,0.00041096,120]
[406825176,1772209850810,-151.0,0.00041096,120]
[406825177,1772209850819,-151.0,0.00041096,120]
[406825178,1772209850829,-151.0,0.00041096,120]
[406825179,1772209850838,-151.0,0.00041096,120]
[406825180,1772209850847,-151.0,0.00041096,120]
[406825181,1772209850857,-151.0,0.00041096,120]
[406825182,1772209850867,-151.0,0.00041096,120]
[406825183,1772209850877,-151.0,0.00041096,120]
[406825184,1772209850886,-151.0,0.00041096,120]
[406825185,1772209850896,-292.744185,0.00041096,120]
[406825186,1772209850905,-151.0,0.00041096,120]
[406825187,1772209850915,-151.0,0.00041096,120]
[406825188,1772209850924,-151.0,0.00041096,120]
[406825189,1772209850934,-151.0,0.00041096,120]
[406825190,1772209850944,-151.0,0.00041096,120]
[406825191,1772209850954,-160.938582,0.00041096,120]
[406825192,1772209850963,-151.0,0.00041096,120]
[406825193,1772209850973,-151.0,0.00041096,120]
[406825194,1772209850983,-154.372804,0.00041096,120]
[406825195,1772209850992,-201.59539,0.00041096,120]
[406825196,1772209851002,-201.59539,0.00041096,120]
[406825197,1772209851011,-244.290861,0.00041096,14]
[406825198,1772209851021,-201.59539,0.00041096,120]
[406825199,1772209851032,-244.290861,0.00041096,14]
[406825200,1772209851042,-201.59539,0.00041096,120]
[406825201,1772209851052,-244.290861,0.00041096,14]
[406825202,1772209851063,-201.59539,0.00041096,120]
[406825203,1772209851073,-244.290861,0.00041096,14]
[406825204,1772209851083,-201.59539,0.00041096,120]
[406825205,1772209851097,-244.290861,0.00041096,14]
[406825206,1772209851107,-201.59539,0.00041096,120]
[406825207,1772209851117,-377.666201,0.00041096,120]
[406825208,1772209851129,-244.290861,0.00041096,14]
[406825209,1772209851139,-201.59539,0.00041096,120]
[406825210,1772209851149,-377.666201,0.00041096,120]
[406825211,1772209851160,-244.290861,0.00041096,14]
[406825212,1772209851172,-377.666201,0.00041096,120]
[406825213,1772209851181,-244.290861,0.00041096,14]
[406825214,1772209851191,-377.666201,0.00041096,120]
[406825215,1772209851200,-377.666201,0.00041096,120]
[406825216,1772209851210,-377.666201,0.00041096,120]
[406825217,1772209851219,-377.666201,0.00041096,120]
[406825218,1772209851229,-377.666201,0.00041096,120]
[406825219,1772209851238,-151.0,0.00041096,120]
[406825220,1772209851247,-215.868245,0.00041096,120]
[406825221,1772209851257,-151.0,0.00041096,120]
[406825222,1772209851267,-151.0,0.00041096,120]
[406825223,1772209851277,-151.0,0.00041096,120]
[406825224,1772209851289,-151.0,0.00041096,120]
[406825225,1772209851300,-177.193464,0.00041096,120]
[406825226,1772209851309,-151.0,0.00041096,120]
[406825227,1772209851318,-179.097087,0.00041096,120]
[406825228,1772209851327,-203.568761,0.00041096,120]
[406825229,1772209851337,-151.0,0.00041096,120]
[406825230,1772209851346,-163.254492,0.00041096,120]
[406825231,1772209851355,-151.0,0.00041096,120]
[406825232,1772209851364,-151.0,0.00041096,120]
[406825233,1772209851373,-151.0,0.00041096,120]
[406825234,1772209851384,-151.0,0.00041096,90]
[406825235,1772209851393,-151.0,0.00041096,90]
[406825236,1772209851402,-151.0,0.00041096,120]
[406825237,1772209851411,-186.082576,0.00041096,120]
[406825238,1772209851421,-151.0,0.00041096,120]
[406825239,1772209851430,-278.92847,0.00041096,120]
[406825240,1772209851439,-151.0,0.00041096,120]
[406825241,1772209851449,-151.0,0.00041096,120]
[406825242,1772209851458,-151.0,0.00041096,120]
[406825243,1772209851467,-248.506281,0.00041096,120]
[406825244,1772209851476,-151.0,0.00041096,120]
[406825245,1772209851485,-151.0,0.00041096,120]
[406825246,1772209851495,-151.0,0.00041096,120]
[406825247,1772209851504,-151.0,0.00041096,120]
[406825248,1772209851512,-151.0,0.00041096,120]
[406825249,1772209851522,-151.0,0.00041096,120]
[406825250,1772209851531,-151.0,0.00041096,120]
[406825251,1772209851540,-151.0,0.00041096,31]
[406825252,1772209851550,-468.484523,0.00041096,120]
[406825253,1772209851559,-151.0,0.00041096,31]
[406825254,1772209851568,-468.484523,0.00041096,120]
[406825255,1772209851577,-468.484523,0.00041096,120]
[406825256,1772209851587,-468.484523,0.00041096,120]
[406825257,1772209851596,-468.484523,0.00041096,120]
[406825258,1772209851605,-468.484523,0.00041096,120]
[406825259,1772209851614,-151.0,0.00041096,120]
[406825260,1772209851624,-151.0,0.00041096,120]
[406825261,1772209851633,-151.0,0.00041096,120]
[406825262,1772209851642,-468.484523,0.00041096,120]
[406825263,1772209851651,-468.484523,0.00041096,120]
[406825264,1772209851661,-927.27566595,0.00041144,2]
[406825265,1772209851670,-961.58486559,0.00041199,2]
[406825266,1772209851679,-15000.0,0.000412,120]
[406825267,1772209851688,-151.0,0.00041233,120]
[406825268,1772209851697,-151.0,0.00041233,120]
[406825269,1772209851707,-997.16350561,0.00041254,2]
[406825270,1772209851716,-904.95,0.000413,14]
[406825271,1772209851726,-6218.44358929,0.000415,120]
[406825272,1772209851735,-15000.0,0.000415,120]
[406825273,1772209851745,-856.45675791,0.00041539,2]
[406825274,1772209851754,-306.29679311,0.00041539,2]
[406825275,1772209851764,-852.28136836,0.00041539,2]
[406825276,1772209851773,-1565.26887382,0.00041539,2]
[406825277,1772209851782,-307.55492962,0.00041539,2]
[406825278,1772209851791,-300.0,0.00041539,2]
[406825279,1772209851800,-300.0,0.00041539,2]
[406825280,1772209851810,-459.19979016,0.00041539,2]
[406825281,1772209851819,-371.72919772,0.00041539,2]
[406825282,1772209851829,-300.0,0.00041539,2]
[406825283,1772209851838,-342.99090995,0.00041539,2]
[406825284,1772209851859,-300.0,0.00041539,2]
[406825285,1772209851868,-419.81311211,0.00041539,2]
[406825286,1772209851878,-519.04834756,0.00041539,2]
[406825287,1772209851887,-306.51036434,0.00041539,2]
[406825288,1772209851898,-300.0,0.00041539,2]
[406825289,1772209851907,-300.0,0.00041539,2]
[406825290,1772209851918,-511.30277196,0.00041539,2]
[406825291,1772209851927,-528.6119758,0.00041539,2]
[406825292,1772209851938,-300.0,0.00041539,2]
[406825293,1772209851948,-1083.06069021,0.00041539,2]
[406825294,1772209851957,-458.40092172,0.00041539,2]
[406825295,1772209851966,-438.21070336,0.00041539,2]
[406825296,1772209851976,-300.0,0.00041539,2]
[406825297,1772209851986,-856.45675791,0.00041539,2]
[406825298,1772209851996,-306.29679311,0.00041539,2]
[406825299,1772209852005,-852.28136836,0.00041539,2]
[406825300,1772209852015,-1565.26887382,0.00041539,2]
[406825301,1772209852024,-307.55492962,0.00041539,2]
[406825302,1772209852035,-300.0,0.00041539,2]
[406825303,1772209852044,-459.19979016,0.00041539,2]
[406825304,1772209852053,-300.0,0.00041539,2]
[406825305,1772209852062,-300.0,0.00041539,2]
[406825306,1772209852072,-371.72919772,0.00041539,2]
[406825307,1772209852085,-300.0,0.00041539,2]
[406825308,1772209852094,-519.04834756,0.00041539,2]
[406825309,1772209852104,-306.51036434,0.00041539,2]
[406825310,1772209852113,-538.97683895,0.00041539,2]
[406825311,1772209852123,-405.58612148,0.00041539,2]
[406825312,1772209852132,-300.0,0.00041539,2]
[406825313,1772209852142,-1083.06069021,0.00041539,2]
[406825314,1772209852151,-856.45675791,0.00041539,2]
[406825315,1772209852161,-306.29679311,0.00041539,2]
[406825316,1772209852171,-852.28136836,0.00041539,2]
[406825317,1772209852180,-307.55492962,0.00041539,2]
[406825318,1772209852189,-300.0,0.00041539,2]
[406825319,1772209852199,-459.19979016,0.00041539,2]
[406825320,1772209852208,-371.72919772,0.00041539,2]
[406825321,1772209852217,-300.0,0.00041539,2]
[406825322,1772209852226,-519.04834756,0.00041539,2]
[406825323,1772209852243,-306.51036434,0.00041539,2]
[406825324,1772209852252,-300.0,0.00041539,2]
[406825325,1772209852261,-1083.06069021,0.00041539,2]
[406825326,1772209852270,-856.45675791,0.00041539,2]
[406825327,1772209852279,-306.29679311,0.00041539,2]
[406825328,1772209852289,-852.28136836,0.00041539,2]
[406825329,1772209852298,-307.55492962,0.00041539,2]
[406825330,1772209852307,-300.0,0.00041539,2]
[406825331,1772209852317,-459.19979016,0.00041539,2]
[406825332,1772209852326,-371.72919772,0.00041539,2]
[406825333,1772209852335,-300.0,0.00041539,2]
[406825334,1772209852344,-519.04834756,0.00041539,2]
[406825335,1772209852353,-306.51036434,0.00041539,2]
[406825336,1772209852365,-300.0,0.00041539,2]
[406825337,1772209852374,-1083.06069021,0.00041539,2]
[406825338,1772209852384,-187.78006525,0.00041635,2]
[406825339,1772209852393,-267.46074303,0.00041635,2]
[406825340,1772209852402,-844.0,0.00041644,120]
[406825341,1772209852411,-168.0,0.00041794,7]
[406825342,1772209852421,-15000.0,0.000418,120]
[406825343,1772209852430,-1051.62291323,0.000419,14]
[406825344,1772209852438,-2566.84,0.000419,14]
[406825345,1772209852447,-1575.8,0.000419,14]
[406825346,1772209852456,-122959.697859,0.000419,120]
[406825347,1772209852465,-205290.73743388,0.00042,120]
[406825348,1772209852475,-373.0,0.00042,2]
[406825349,1772209852484,-151.0,0.00042,120]
[406825350,1772209852496,-151.0,0.00042,120]
[406825351,1772209852505,-151.0,0.00042,120]
[406825352,1772209852516,-298.897297,0.00042,15]
[406825353,1772209852525,-298.897297,0.00042,15]
[406825354,1772209852535,-298.897297,0.00042,15]
[406825355,1772209852544,-298.897297,0.00042,15]
[406825356,1772209852554,-151.0,0.00042,60]
[406825357,1772209852563,-151.0,0.00042,120]
[406825358,1772209852573,-151.0,0.00042,30]
[406825359,1772209852582,-151.0,0.00042,120]
[406825360,1772209852592,-151.0,0.00042,120]
[406825361,1772209852601,-173.143664,0.00042,120]
[406825362,1772209852610,-151.0,0.00042,120]
[406825363,1772209852620,-151.0,0.00042,120]
[406825364,1772209852629,-151.0,0.00042,120]
[406825365,1772209852639,-151.0,0.00042,120]
[406825366,1772209852648,-151.0,0.00042,120]
[406825367,1772209852657,-151.0,0.00042,120]
[406825368,1772209852666,-317.205234,0.00042,120]
[406825369,1772209852676,-317.205234,0.00042,120]
[406825370,1772209852686,-201.59539,0.00042,120]
[406825371,1772209852695,-317.205234,0.00042,120]
[406825372,1772209852704,-244.290861,0.00042,14]
[406825373,1772209852713,-201.59539,0.00042,120]
[406825374,1772209852723,-317.205234,0.00042,120]
[406825375,1772209852732,-244.290861,0.00042,14]
[406825376,1772209852741,-201.59539,0.00042,120]
[406825377,1772209852750,-244.290861,0.00042,14]
[406825378,1772209852759,-201.59539,0.00042,120]
[406825379,1772209852768,-377.666201,0.00042,120]
[406825380,1772209852778,-244.290861,0.00042,14]
[406825381,1772209852788,-377.666201,0.00042,120]
[406825382,1772209852796,-377.666201,0.00042,120]
[406825383,1772209852806,-377.666201,0.00042,120]
[406825384,1772209852815,-151.0,0.00042,120]
[406825385,1772209852824,-157.554015,0.00042,120]
[406825386,1772209852833,-151.0,0.00042,120]
[406825387,1772209852842,-151.0,0.00042,120]
[406825388,1772209852850,-151.0,0.00042,120]
[406825389,1772209852859,-151.0,0.00042,90]
[406825390,1772209852868,-151.0,0.00042,120]
[406825391,1772209852877,-151.0,0.00042,120]
[406825392,1772209852886,-151.0,0.00042,120]
[406825393,1772209852895,-468.484523,0.00042,120]
[406825394,1772209852904,-468.484523,0.00042,120]
[406825395,1772209852913,-468.484523,0.00042,120]
[406825396,1772209852922,-151.0,0.00042,120]
[406825397,1772209852931,-845.0,0.00042004,16]
[406825398,1772209852940,-1211.0,0.00042091,2]
[406825399,1772209852949,-916.0,0.00042091,2]
[406825400,1772209852958,-156.0,0.000421,120]
[406825401,1772209852967,-5364.05,0.000421,120]
[406825402,1772209852975,-150.0,0.00042173,120]
[406825403,1772209852985,-194.72792766,0.00042183,2]
[406825404,1772209852994,-277.35679052,0.00042183,2]
[406825405,1772209853003,-844.0,0.00042192,120]
[406825406,1772209853012,-175.22654387,0.00042219,14]
[406825407,1772209853021,-168.0,0.00042239,2]
[406825408,1772209853030,-159.38,0.00042466,120]
[406825409,1772209853039,-500.0,0.00042466,120]
[406825410,1772209853048,-2000.0,0.000425,2]
[406825411,1772209853057,-500.0,0.00042521,120]
[406825412,1772209853067,-500.0,0.00042576,120]
[406825413,1772209853076,-263.36,0.000426,60]
[406825414,1772209853086,-500.0,0.0004263,120]
[406825415,1772209853099,-548.24027843,0.00042685,120]
[406825416,1772209853109,-1565.09,0.000427,30]
[406825417,1772209853119,-12018.92,0.000427,120]
[406825418,1772209853130,-904.95,0.000427,14]